bitfinex/quotes_ETHUSD_20240926
["timestamp","ask_amount","ask_price","bid_price","bid_amount"]
[1727337003737,0.8187,2633.0,2632.5,0.03621561]
[1727337003935,4.63343527,2633.0,2632.5,3.07513561]
[1727337004168,4.7283982,2633.0,2632.5,3.07513561]
[1727337004859,0.91366293,2633.0,2632.6,3.0388]
[1727337005064,0.8187,2633.0,2632.6,6.0776]
[1727337005263,0.8187,2633.0,2632.7,0.03614364]
[1727337008075,0.8723175,2633.2,2632.7,0.86374364]
[1727337008245,0.8723175,2633.2,2632.9,3.03841]
[1727337008634,0.0732175,2633.2,2633.0,3.07425282]
[1727337008857,0.0732175,2633.2,2633.0,0.03590282]
[1727337009062,0.0732175,2633.2,2633.1,3.03824]
[1727337009282,0.0732175,2633.2,2633.1,3.79634]
[1727337009486,0.0732175,2633.2,2633.0,3.03834]
[1727337009687,0.0732175,2633.2,2633.1,0.03564778]
[1727337010925,0.0732175,2633.2,2633.1,3.07388778]
[1727337011483,0.0732175,2633.2,2633.1,0.03564778]
[1727337011699,0.0732175,2633.2,2632.9,3.03838]
[1727337011852,0.0732175,2633.2,2633.1,0.03564778]
[1727337012202,0.0732175,2633.2,2632.9,3.03838]
[1727337012347,0.0732175,2633.2,2633.1,0.03564778]
[1727337012548,0.0732175,2633.2,2633.0,0.03568016]
[1727337012754,0.0732175,2633.2,2633.1,0.03564778]
[1727337013085,0.0732175,2633.2,2632.9,3.03838]
[1727337013395,0.0732175,2633.2,2633.0,0.03568016]
[1727337014366,0.0732175,2633.2,2632.8,0.7581]
[1727337014683,0.0732175,2633.2,2632.8,3.79665]
[1727337014885,0.0732175,2633.2,2632.9,0.03571254]
[1727337015667,0.0732175,2633.2,2632.9,3.03847]
[1727337015890,0.0732175,2633.2,2633.0,0.03568016]
[1727337016074,0.0732175,2633.2,2632.9,3.03846]
[1727337016401,0.0732175,2633.2,2633.0,0.03568016]
[1727337017091,3.1113475,2633.2,2633.0,0.03568016]
[1727337017281,7.0491692,2633.2,2632.7,3.03867]
[1727337017484,7.0491692,2633.2,2632.8,0.03574493]
[1727337017485,3.1113475,2633.2,2632.8,0.03574493]
[1727337017681,3.1113475,2633.2,2632.7,3.03864]
[1727337017886,3.1113475,2633.2,2632.9,0.03571254]
[1727337018081,3.1113475,2633.2,2632.7,3.03864]
[1727337018413,3.1113475,2633.2,2632.8,0.03574493]
[1727337018914,3.1113475,2633.2,2632.9,0.03571254]
[1727337019087,4.02044041,2633.2,2632.9,0.03571254]
[1727337019267,4.02044041,2633.2,2632.6,6.07748]
[1727337019469,0.0732175,2633.2,2632.7,3.07447732]
[1727337019812,0.0732175,2633.2,2632.9,3.03846]
[1727337020101,0.0732175,2633.2,2633.0,0.03547906]
[1727337020869,0.0732175,2633.2,2632.8,3.03858]
[1727337021100,0.0732175,2633.2,2632.9,0.03780944]
[1727337022417,0.0732175,2633.2,2632.9,3.07625944]
[1727337022971,0.0732175,2633.2,2632.9,0.03780944]
[1727337023206,0.0732175,2633.2,2632.9,0.82110944]
[1727337023372,0.0732175,2633.2,2632.9,0.7833]
[1727337023568,0.0732175,2633.2,2633.0,3.07607013]
[1727337024512,0.0732175,2633.2,2633.0,0.03779013]
[1727337026811,0.0732175,2633.2,2633.0,3.07613013]
[1727337027117,0.0732175,2633.2,2633.1,0.0376785]
[1727337027621,0.0732175,2633.2,2633.0,3.0383]
[1727337027816,0.0732175,2633.2,2633.1,0.0376785]
[1727337028190,0.0732175,2633.2,2633.1,3.9067185]
[1727337030374,0.0732175,2633.2,2633.1,3.0759185]
[1727337032077,0.0732175,2633.2,2633.1,3.12081878]
[1727337035324,0.0732175,2633.2,2633.1,0.08257878]
[1727337035325,0.8313175,2633.2,2633.1,0.08257878]
[1727337036040,0.8313175,2633.2,2633.0,3.03832]
[1727337036239,0.8313175,2633.2,2633.1,0.08239211]
[1727337037010,0.0732175,2633.2,2633.1,3.12063211]
[1727337037818,0.0732175,2633.2,2633.1,0.08239211]
[1727337038128,0.0732175,2633.2,2633.1,3.03824]
[1727337038322,0.0732175,2633.2,2633.1,3.92396083]
[1727337039250,0.0732175,2633.2,2633.1,3.12066083]
[1727337041148,0.0732175,2633.2,2633.1,6.31608548]
[1727337041648,0.0732175,2633.2,2633.1,10.62588545]
[1727337041843,0.0732175,2633.2,2633.1,10.54992079]
[1727337042435,0.0382175,2633.2,2633.1,10.54992079]
[1727337042640,0.0382175,2634.0,2633.9,6.78762]
[1727337042946,0.0382175,2634.0,2633.9,8.69322849]
[1727337043149,0.0382175,2634.0,2633.9,8.61731298]
[1727337043850,0.0382175,2634.0,2633.9,9.04126309]
[1727337044038,0.0382175,2634.0,2633.9,9.82518129]
[1727337044345,0.0382175,2634.0,2633.9,8.07711176]
[1727337044651,0.0382175,2634.0,2633.9,3.86924345]
[1727337044945,0.0382175,2634.0,2633.9,0.08162345]
[1727337045716,0.0382175,2634.0,2633.6,6.80189]
[1727337045921,0.0382175,2634.0,2633.7,0.0816918]
[1727337048765,3.0754175,2634.0,2633.7,0.0816918]
[1727337049059,3.77213195,2634.0,2633.5,0.7891945]
[1727337049255,3.77213195,2634.0,2633.8,0.07824816]
[1727337049457,3.77213195,2634.0,2633.5,0.7891945]
[1727337049617,3.77213195,2634.0,2633.9,0.07821398]
[1727337049816,3.77213195,2634.0,2633.5,0.7891945]
[1727337049817,0.73493195,2634.0,2633.5,3.8269045]
[1727337050018,0.73493195,2634.0,2633.9,0.07821398]
[1727337050218,3.77213195,2634.0,2633.5,3.8269645]
[1727337050719,3.77213195,2634.0,2633.6,0.07848129]
[1727337052546,6.80941195,2634.0,2633.6,0.07848129]
[1727337052755,3.77213195,2634.0,2633.6,0.07848129]
[1727337053874,0.46267566,2633.9,2633.6,0.07848129]
[1727337054090,0.7937,2633.8,2633.6,0.07848129]
[1727337054377,0.7937,2633.8,2633.4,3.03782]
[1727337054537,0.7937,2633.8,2633.7,0.0784901]
[1727337054738,0.7937,2633.8,2633.3,3.03795]
[1727337055039,0.7937,2633.8,2633.7,0.0784901]
[1727337055239,0.7937,2633.8,2633.4,3.03786]
[1727337055440,0.7937,2633.8,2633.7,0.0784901]
[1727337055655,0.7937,2633.8,2633.3,3.038]
[1727337055876,0.7937,2633.8,2633.7,0.0784901]
[1727337056077,1.56855636,2633.8,2633.4,3.03783]
[1727337056280,4.60598636,2633.8,2633.2,6.0761]
[1727337056467,3.83113,2633.8,2633.5,0.07855846]
[1727337056639,3.03766,2633.6,2633.0,0.8113]
[1727337056837,0.8171,2633.5,2633.2,3.03812]
[1727337057683,0.8171,2633.5,2633.2,3.03806]
[1727337057851,0.8171,2633.5,2633.0,3.84955]
[1727337058054,0.8171,2633.5,2633.1,3.0382]
[1727337058384,0.8171,2633.5,2633.2,3.03806]
[1727337059475,0.8171,2633.5,2633.0,3.84959]
[1727337059975,0.8171,2633.5,2633.1,3.03823]
[1727337060338,0.8171,2633.5,2633.0,3.03829]
[1727337060562,0.8171,2633.5,2633.0,6.07659]
[1727337060778,1.21207059,2633.5,2633.0,3.03829]
[1727337061143,1.21207059,2633.5,2633.0,6.07658]
[1727337061587,1.21207059,2633.5,2633.1,3.03818]
[1727337061883,0.8171,2633.5,2633.1,3.03818]
[1727337062447,0.8171,2633.5,2633.0,3.03829]
[1727337063371,0.8171,2633.5,2633.0,6.07658]
[1727337063547,0.8171,2633.5,2633.0,3.03829]
[1727337063743,0.8171,2633.5,2633.0,3.03828]
[1727337063950,0.8171,2633.5,2633.2,3.0381]
[1727337065284,0.8171,2633.5,2633.1,3.03821]
[1727337065491,0.8171,2633.5,2633.2,3.03812]
[1727337066101,0.8171,2633.5,2633.3,3.03793]
[1727337066301,0.7594,2633.8,2633.4,3.03782]
[1727337066471,3.79684,2633.8,2633.4,0.07939524]
[1727337066672,0.7594,2633.8,2633.4,3.11725524]
[1727337066875,0.7594,2633.8,2633.5,3.03777]
[1727337067060,0.7594,2633.8,2633.6,0.07926954]
[1727337067787,0.7594,2633.8,2633.6,3.03764]
[1727337067963,0.7594,2633.8,2633.7,0.07923536]
[1727337068458,0.8510175,2634.0,2633.7,0.07923536]
[1727337068658,0.8510175,2634.0,2633.6,3.03757]
[1727337068857,0.8510175,2634.0,2633.6,3.424117]
[1727337069086,0.8510175,2634.0,2633.7,3.11672536]
[1727337069289,0.8510175,2634.0,2633.7,0.07923536]
[1727337069707,0.8510175,2634.0,2633.7,3.11672536]
[1727337069879,0.8510175,2634.0,2633.8,3.03741]
[1727337070262,0.8510175,2634.0,2633.9,0.07916701]
[1727337070602,0.8510175,2634.0,2633.7,3.03754]
[1727337070899,0.8510175,2634.0,2633.9,0.07848573]
[1727337071063,0.8510175,2634.0,2633.8,0.0785199]
[1727337071265,0.8510175,2634.0,2633.9,0.07602791]
[1727337071577,4.57115638,2634.0,2633.4,3.03781]
[1727337071773,3.98313665,2634.0,2633.9,0.07601258]
[1727337071975,3.98313665,2634.0,2633.4,3.03781]
[1727337071976,5.97521642,2634.0,2633.4,3.03781]
[1727337072186,2.93801642,2634.0,2633.4,3.03781]
[1727337072401,2.93801642,2634.0,2633.3,0.8213]
[1727337072402,3.03738,2633.9,2633.5,0.07614928]
[1727337072606,3.03744,2633.8,2633.5,0.07614928]
[1727337072920,0.8209,2633.6,2633.1,7.44]
[1727337073086,0.8209,2633.6,2633.1,3.03823]
[1727337073087,3.85856,2633.6,2633.1,3.03823]
[1727337073476,0.8209,2633.6,2633.1,3.03823]
[1727337073686,0.8209,2633.6,2633.1,3.7568098]
[1727337074311,0.8209,2633.6,2633.1,0.7185798]
[1727337074622,3.82489171,2634.0,2633.8,3.03743]
[1727337074623,0.8289175,2634.0,2633.8,3.03743]
[1727337074776,0.0382175,2634.0,2633.6,3.0376]
[1727337074972,0.0382175,2634.0,2633.9,3.03732]
[1727337075176,0.0382175,2634.0,2633.9,3.84212]
[1727337075414,0.0382175,2634.0,2633.9,4.449595]
[1727337076107,0.0382175,2634.0,2633.9,7.449595]
[1727337077287,6.70613203,2634.4,2634.3,3.03685]
[1727337077591,6.70613203,2634.4,2634.3,7.420632]
[1727337078280,6.70613203,2634.4,2634.3,11.20730621]
[1727337078813,0.97910186,2634.4,2634.3,11.47594851]
[1727337078980,0.0382175,2635.6,2635.5,6.81747]
[1727337079196,0.0382175,2635.6,2635.5,0.782]
[1727337079581,0.0382175,2635.6,2635.2,3.80497]
[1727337079784,0.0382175,2635.6,2635.2,0.7692]
[1727337080084,0.0382175,2635.6,2635.5,3.03547]
[1727337080915,0.0382175,2635.6,2635.4,3.03551]
[1727337081615,0.0382175,2635.6,2635.2,3.80497]
[1727337081616,0.0382175,2635.6,2635.5,0.07080774]
[1727337081989,0.0382175,2635.6,2635.3,3.03566]
[1727337082193,0.0382175,2635.6,2635.5,0.07080774]
[1727337082708,0.0382175,2635.6,2635.5,0.85100774]
[1727337082880,0.0382175,2635.6,2635.5,6.88647774]
[1727337083326,0.0382175,2635.6,2635.5,6.96233362]
[1727337083682,0.0382175,2635.6,2635.5,6.88647774]
[1727337084183,0.0382175,2635.6,2635.5,0.85100774]
[1727337084716,0.0382175,2635.6,2635.5,0.92688153]
[1727337084913,0.0382175,2635.6,2635.5,0.85100774]
[1727337085623,0.0382175,2635.6,2635.5,0.92687957]
[1727337085984,0.0382175,2635.6,2635.5,0.85100774]
[1727337086908,0.0382175,2635.6,2635.5,0.07080774]
[1727337087118,3.38092725,2635.6,2635.5,0.07080774]
[1727337087323,3.03553,2635.5,2634.9,0.8307]
[1727337087517,3.03553,2635.5,2635.0,0.0708072]
[1727337087889,3.03549,2635.5,2635.0,0.0708072]
[1727337088613,3.03559,2635.4,2635.0,0.0708072]
[1727337089235,0.33809273,2635.5,2635.0,0.14669709]
[1727337089522,3.0736275,2635.6,2635.0,0.07588989]
[1727337089682,3.0736275,2635.6,2635.1,0.07077306]
[1727337089886,3.0736075,2635.6,2635.1,0.07077306]
[1727337090922,0.0382175,2635.6,2635.1,0.07077306]
[1727337091686,3.68449825,2635.6,2635.1,0.07077306]
[1727337091923,0.0382175,2635.6,2635.1,0.07077306]
[1727337092509,0.0382175,2635.6,2634.6,3.7595]
[1727337092510,3.03572,2635.3,2634.7,3.03638]
[1727337092749,3.03572,2635.3,2634.8,0.06832786]
[1727337093149,3.03572,2635.3,2634.7,3.03638]
[1727337093454,0.68573,2635.3,2634.8,0.06832786]
[1727337093813,0.68573,2635.3,2634.8,3.03618]
[1727337094042,6.85718,2635.4,2634.9,0.06829372]
[1727337094456,3.82151,2635.4,2634.9,0.06829372]
[1727337094727,3.82151,2635.4,2634.7,3.0]
[1727337094728,3.03575,2635.3,2634.7,3.0]
[1727337094942,0.0382175,2635.6,2634.8,0.1445161]
[1727337095246,0.0382175,2635.6,2635.0,6.07196]
[1727337095409,0.0382175,2635.6,2635.0,3.03597]
[1727337095613,0.0382175,2635.6,2635.1,0.0685764]
[1727337095938,0.34557125,2635.6,2635.1,0.0685764]
[1727337096157,0.34557125,2635.6,2635.3,3.03559]
[1727337096312,0.0382175,2635.6,2635.4,0.07588403]
[1727337096510,0.0382175,2635.6,2635.5,3.03547]
[1727337096715,0.0382175,2635.6,2635.5,3.88380986]
[1727337098158,0.0382175,2635.6,2635.5,10.67048407]
[1727337098961,0.0382175,2636.4,2636.1,3.03476]
[1727337099115,0.0382175,2636.4,2636.1,3.87041584]
[1727337099419,0.0382175,2636.4,2636.2,0.06758102]
[1727337100326,0.0382175,2636.4,2636.2,3.91985102]
[1727337100645,0.0382175,2636.4,2636.2,0.88518102]
[1727337101222,0.0382175,2636.4,2636.2,0.06758102]
[1727337104764,0.7951,2636.3,2635.7,3.03523]
[1727337104966,0.7951,2636.3,2635.6,0.8226]
[1727337104967,4.21642175,2636.3,2635.6,3.85794]
[1727337105269,3.03484,2636.1,2635.5,3.03542]
[1727337105431,3.03508,2635.9,2635.3,11.2982]
[1727337105628,3.03496,2636.0,2635.5,3.03547]
[1727337106272,3.03496,2636.0,2635.3,7.44]
[1727337106273,0.8976522,2635.9,2635.3,7.44]
[1727337106430,3.03532,2635.7,2635.1,3.03584]
[1727337106629,3.9327122,2635.9,2635.3,3.0356]
[1727337106630,3.83786,2635.9,2635.3,3.0356]
[1727337107401,4.53461532,2635.9,2635.4,3.86014]
[1727337107563,0.8028,2635.9,2635.4,3.93602249]
[1727337107752,0.8028,2635.9,2635.4,3.93599249]
[1727337107947,0.8028,2635.9,2635.5,3.03547]
[1727337108272,3.03514,2635.8,2635.2,3.03578]
[1727337108584,6.07037,2635.8,2635.2,3.03578]
[1727337108756,3.03531,2635.7,2635.2,3.03578]
[1727337108928,3.03542,2635.6,2635.0,3.03598]
[1727337109133,4.022477,2635.8,2635.0,3.03598]
[1727337109372,4.022477,2635.8,2635.2,3.03581]
[1727337109572,3.83785,2635.9,2635.2,3.03573]
[1727337109863,0.8028,2635.9,2635.4,3.03559]
[1727337110267,0.8028,2635.9,2635.4,3.03553]
[1727337110430,0.8028,2635.9,2635.5,3.03547]
[1727337111461,0.8028,2635.9,2635.6,0.0597473]
[1727337111663,3.43099206,2636.2,2635.7,3.03523]
[1727337111664,3.03473,2636.2,2635.7,3.03523]
[1727337112156,3.03473,2636.2,2635.8,0.05967905]
[1727337113598,0.0382175,2636.4,2635.9,0.832]
[1727337113898,0.0382175,2636.4,2635.9,3.86691]
[1727337114078,0.0382175,2636.4,2636.0,0.05961081]
[1727337114260,0.0382175,2636.4,2636.1,3.03468]
[1727337114464,0.0382175,2636.4,2636.1,3.03475]
[1727337114774,0.0382175,2636.4,2636.2,0.05954258]
[1727337115550,0.0382175,2636.4,2636.2,3.09413258]
[1727337119275,0.0382175,2636.4,2636.2,0.05954258]
[1727337119496,0.0382175,2636.4,2636.2,3.09414258]
[1727337121628,0.0382175,2636.4,2636.2,0.05954258]
[1727337121785,0.0382175,2636.4,2636.0,3.03481]
[1727337121985,0.0382175,2636.4,2636.3,0.05950847]
[1727337122195,0.0382175,2636.4,2636.1,3.03478]
[1727337122437,0.0382175,2636.4,2636.3,0.0590889]
[1727337122576,0.0382175,2636.4,2636.2,0.05912301]
[1727337122782,3.8232475,2636.4,2636.3,0.0590889]
[1727337123105,4.21196225,2636.4,2636.3,0.0590889]
[1727337123489,4.21193225,2636.4,2635.6,11.30006]
[1727337123686,3.03456,2636.3,2635.8,3.03512]
[1727337123877,3.03503,2635.9,2635.7,0.0592936]
[1727337124079,3.03503,2635.9,2635.6,7.44]
[1727337124080,0.8264,2635.8,2635.6,7.44]
[1727337124271,0.8264,2635.8,2635.1,20.4972]
[1727337124272,0.8264,2635.8,2635.1,0.8172]
[1727337124514,0.8264,2635.8,2635.4,6.07098]
[1727337124901,0.8264,2635.8,2635.6,3.03525]
[1727337125137,0.7994,2636.2,2635.6,3.03525]
[1727337126516,0.7994,2636.2,2635.7,3.0948536]
[1727337127216,0.7994,2636.2,2635.7,0.0596136]
[1727337127429,0.7994,2636.2,2635.8,3.03512]
[1727337127714,3.83413,2636.2,2635.7,0.0596136]
[1727337127931,3.83413,2636.2,2635.9,0.05947424]
[1727337127932,3.03479,2636.1,2635.9,0.05947424]
[1727337128277,3.03479,2636.1,2635.5,3.03545]
[1727337128734,3.03479,2636.1,2635.6,0.05789405]
[1727337128882,3.49674225,2636.1,2635.6,0.05789405]
[1727337129080,0.46195225,2636.1,2635.7,3.03522]
[1727337129390,3.83415,2636.2,2635.7,3.09307993]
[1727337129892,0.7994,2636.2,2635.7,3.09307993]
[1727337130301,3.03479,2636.1,2635.7,0.05785993]
[1727337130482,0.7994,2636.2,2635.7,0.05785993]
[1727337130890,3.03478,2636.1,2635.5,3.0354]
[1727337131198,3.03478,2636.1,2635.6,3.03531]
[1727337131395,3.03478,2636.1,2635.6,3.09323247]
[1727337131599,1.39390031,2636.2,2636.0,3.03481]
[1727337131600,0.7994,2636.2,2636.0,3.03481]
[1727337131914,0.0382175,2636.4,2636.2,3.03466]
[1727337132224,0.0382175,2636.4,2636.3,0.05768364]
[1727337132434,0.0382175,2636.4,2636.1,3.03478]
[1727337132724,0.0382175,2636.4,2636.3,0.05768364]
[1727337132908,0.0382175,2636.4,2636.2,3.09237775]
[1727337133100,0.0382175,2636.4,2636.2,0.05771775]
[1727337133421,3.03455,2636.3,2636.2,0.05771775]
[1727337133588,3.85335,2636.3,2636.2,0.05771775]
[1727337133802,3.85335,2636.3,2635.8,3.0351]
[1727337134033,3.85335,2636.3,2636.2,0.05771775]
[1727337134238,3.85335,2636.3,2635.8,3.0351]
[1727337134440,3.85335,2636.3,2636.2,0.05771775]
[1727337134739,4.74336509,2636.3,2635.8,3.0351]
[1727337134912,4.74336509,2636.3,2636.2,0.05771775]
[1727337135236,4.74336509,2636.3,2635.8,3.0351]
[1727337135442,4.74336509,2636.3,2636.2,0.05771775]
[1727337135654,4.74336509,2636.3,2635.3,6.03566]
[1727337135655,0.8188,2636.2,2634.9,7.44]
[1727337135954,3.85382,2635.9,2635.3,6.07127]
[1727337136237,3.85382,2635.9,2635.3,3.03563]
[1727337136638,3.85382,2635.9,2634.8,0.8295]
[1727337136639,3.03513,2635.8,2635.2,3.03575]
[1727337136847,3.81263,2635.6,2634.8,0.8295]
[1727337137044,3.81263,2635.6,2635.1,3.03587]
[1727337137243,3.81263,2635.6,2635.0,3.03598]
[1727337137491,3.81263,2635.6,2634.8,3.03622]
[1727337137492,0.7772,2635.2,2634.8,3.03622]
[1727337138109,3.8131,2635.2,2634.6,3.03639]
[1727337138432,3.03593,2635.1,2634.6,3.03639]
[1727337138607,3.03594,2635.1,2634.6,3.03639]
[1727337139213,0.7772,2635.2,2634.7,3.03639]
[1727337140012,3.81313,2635.2,2634.6,3.03639]
[1727337140208,3.03601,2635.1,2634.4,6.07334]
[1727337140417,0.823,2634.9,2634.4,3.03665]
[1727337140746,4.60967421,2634.9,2634.4,3.03671]
[1727337140947,8.03181121,2634.9,2634.4,3.03671]
[1727337141168,4.99558121,2634.9,2634.2,3.03691]
[1727337141342,3.0363,2634.8,2634.2,3.03689]
[1727337141544,3.0363,2634.8,2634.3,0.05378327]
[1727337141718,3.13129248,2634.7,2634.3,0.05378327]
[1727337141922,3.13129248,2634.7,2634.2,3.03689]
[1727337141923,0.7652,2634.6,2634.2,3.03689]
[1727337142140,0.7652,2634.6,2634.4,0.05390536]
[1727337142437,0.7652,2634.6,2634.5,0.0538712]
[1727337142617,5.36264318,2634.6,2634.0,3.03711]
[1727337142819,8.49405478,2634.6,2634.5,0.0538712]
[1727337143020,4.61247897,2634.6,2633.9,3.03727]
[1727337143258,3.80171,2634.6,2634.0,3.0371]
[1727337143427,3.80171,2634.6,2634.0,3.09127697]
[1727337143627,0.7652,2634.6,2634.1,3.03698]
[1727337143835,0.7652,2634.6,2634.1,3.09125778]
[1727337145568,3.80172,2634.6,2634.1,3.09125778]
[1727337146269,3.80172,2634.6,2634.1,0.05427778]
[1727337146270,3.03669,2634.5,2634.1,0.05427778]
[1727337146469,3.03678,2634.4,2633.9,3.0373]
[1727337146629,11.4357661,2634.6,2634.2,0.05272235]
[1727337146958,4.18024661,2634.5,2633.9,6.07446]
[1727337147166,4.18024661,2634.5,2634.3,0.05268819]
[1727337147471,1.14357661,2634.5,2634.0,3.03718]
[1727337147669,0.7652,2634.6,2634.4,0.05265403]
[1727337147834,3.80178,2634.6,2634.0,3.03718]
[1727337148023,3.80178,2634.6,2634.1,3.03701]
[1727337148024,0.7652,2634.6,2634.1,3.03701]
[1727337148225,0.7652,2634.6,2634.1,3.08976652]
[1727337148427,0.7652,2634.6,2634.1,3.16568967]
[1727337148815,0.7652,2634.6,2634.1,3.99058967]
[1727337149091,0.09489625,2634.9,2634.4,3.03673]
[1727337149092,3.8093,2634.9,2634.4,3.03673]
[1727337149306,3.78667421,2635.1,2634.6,3.0365]
[1727337149307,0.8093,2635.1,2634.6,3.0365]
[1727337149754,3.84523,2635.1,2634.7,0.05255156]
[1727337149957,4.54282923,2635.1,2634.7,0.05255156]
[1727337150155,1.50689923,2635.1,2634.6,3.0364]
[1727337150462,0.8093,2635.1,2634.7,3.08893156]
[1727337151653,0.8093,2635.1,2634.7,0.05255156]
[1727337151852,3.84527,2635.1,2634.7,0.05255156]
[1727337152064,3.84527,2635.1,2634.5,6.07308]
[1727337152299,3.84527,2635.1,2634.8,0.05246058]
[1727337152593,3.84527,2635.1,2634.5,3.03654]
[1727337152802,3.84527,2635.1,2634.6,0.12843262]
[1727337152959,0.8093,2635.1,2634.6,0.12843262]
[1727337153159,0.8093,2635.1,2634.7,3.03638]
[1727337153375,0.8093,2635.1,2634.8,0.05242508]
[1727337153578,0.7955,2635.3,2634.8,0.05242508]
[1727337153780,3.03589,2635.2,2634.6,0.83610374]
[1727337154053,3.03589,2635.2,2634.6,3.87254374]
[1727337154252,3.03589,2635.2,2634.7,0.05245923]
[1727337154489,6.07177,2635.2,2634.7,0.05245923]
[1727337154692,3.03588,2635.2,2634.7,0.05245923]
[1727337155199,3.036,2635.1,2634.7,0.05245923]
[1727337156890,3.036,2635.1,2634.5,6.14898362]
[1727337157091,3.036,2635.1,2634.8,0.05242508]
[1727337157290,3.03588,2635.2,2634.5,0.07590362]
[1727337157505,3.03588,2635.2,2634.9,0.05239093]
[1727337157696,4.19947476,2635.2,2634.6,6.07288]
[1727337157877,4.19947476,2635.2,2635.0,0.05235679]
[1727337157878,6.07181,2635.2,2635.0,0.05235679]
[1727337158068,3.03593,2635.1,2634.6,3.03643]
[1727337158263,4.19950176,2635.2,2634.4,3.82308]
[1727337158499,0.7572,2634.9,2634.4,3.03667]
[1727337159200,0.7572,2634.9,2634.4,6.07335]
[1727337159903,0.7572,2634.9,2634.5,3.03662]
[1727337160120,0.7572,2634.9,2634.4,3.03667]
[1727337160329,0.757,2635.1,2634.6,3.03644]
[1727337160774,0.757,2635.1,2634.7,3.8632]
[1727337161780,0.757,2635.1,2634.6,3.11234544]
[1727337161781,0.757,2635.1,2634.6,6.07289]
[1727337161981,0.757,2635.1,2634.6,6.14879508]
[1727337162911,0.757,2635.1,2634.7,3.03638]
[1727337163486,3.79294,2635.1,2634.6,3.11234508]
[1727337163828,0.757,2635.1,2634.7,3.03635]
[1727337167189,0.757,2635.1,2634.8,3.03627]
[1727337167374,1.14576118,2635.1,2634.6,3.03643]
[1727337167715,0.757,2635.1,2634.7,3.03639]
[1727337168479,1.0,2635.0,2634.7,3.03639]
[1727337168811,1.0,2635.0,2634.6,3.03643]
[1727337168990,1.0,2635.0,2634.8,3.03627]
[1727337170315,1.0,2635.0,2634.7,3.03632]
[1727337170480,1.0,2635.0,2634.8,3.03627]
[1727337171277,1.0,2635.0,2634.9,0.05240513]
[1727337172381,1.0,2635.0,2634.8,3.03626]
[1727337172733,1.0,2635.0,2634.9,0.05240513]
[1727337173481,1.0,2635.0,2634.6,3.03643]
[1727337173681,1.0,2635.0,2634.9,0.05240513]
[1727337173904,1.0,2635.0,2634.7,3.03634]
[1727337174109,1.0,2635.0,2634.9,0.05240513]
[1727337174304,1.0,2635.0,2634.7,3.03634]
[1727337174506,1.0,2635.0,2634.9,0.05240513]
[1727337174705,1.0,2635.0,2634.6,3.0364]
[1727337174906,1.0,2635.0,2634.9,0.05240513]
[1727337175110,1.0,2635.0,2634.7,3.03634]
[1727337175321,1.0,2635.0,2634.9,0.05240513]
[1727337175523,1.0,2635.0,2634.7,3.03634]
[1727337175738,1.0,2635.0,2634.9,0.05240513]
[1727337175890,1.0,2635.0,2634.8,0.05243928]
[1727337176083,1.0,2635.0,2634.7,3.03634]
[1727337176327,1.0,2635.0,2634.9,0.05240513]
[1727337176499,1.0,2635.0,2634.7,3.03634]
[1727337176700,1.0,2635.0,2634.9,0.05240513]
[1727337176900,1.0,2635.0,2634.9,3.11206513]
[1727337177233,1.0,2635.0,2634.9,3.84476513]
[1727337179527,1.0,2635.0,2634.9,3.92064936]
[1727337179731,1.0,2635.0,2634.9,6.92064936]
[1727337184930,1.0,2635.0,2634.9,6.84476513]
[1727337185512,1.0,2635.0,2634.9,6.9206495]
[1727337186750,1.0,2635.0,2634.9,6.92064804]
[1727337189036,1.0,2635.0,2634.9,6.84476513]
[1727337189238,1.0,2635.0,2634.9,6.92065431]
[1727337189444,1.0,2635.0,2634.9,6.84476513]
[1727337190238,1.0,2635.0,2634.9,6.9206548]
[1727337191615,1.0,2635.0,2634.9,6.9206531]
[1727337196333,1.0,2635.0,2634.9,6.1644531]
[1727337196527,1.0,2635.0,2634.9,6.08856513]
[1727337199855,1.0,2635.0,2634.9,0.05240513]
[1727337200162,1.0,2635.0,2634.6,3.11236965]
[1727337200323,1.0,2635.0,2634.9,0.0516255]
[1727337200642,1.0,2635.0,2634.7,3.03639]
[1727337200846,1.0,2635.0,2634.9,0.0516255]
[1727337201032,1.0,2635.0,2634.8,3.16380107]
[1727337201220,1.0,2635.0,2634.9,3.0877855]
[1727337202418,1.0,2635.0,2634.9,0.0516255]
[1727337202623,1.0,2635.0,2634.9,3.0877855]
[1727337202931,1.0,2635.0,2634.9,0.0516255]
[1727337203542,1.0,2635.0,2634.9,3.0877855]
[1727337203737,1.7827,2635.0,2634.9,0.0516255]
[1727337203967,1.7827,2635.0,2634.6,3.03642]
[1727337204262,1.0,2635.0,2634.8,3.03621]
[1727337204424,1.0,2635.0,2634.7,0.05014092]
[1727337204856,0.8136,2634.9,2634.7,0.05014092]
[1727337205354,0.8136,2634.9,2634.7,3.08652092]
[1727337206675,0.8136,2634.9,2634.7,0.05014092]
[1727337206823,1.298554,2634.9,2634.7,0.05014092]
[1727337208362,1.298554,2634.9,2634.2,0.761]
[1727337208363,4.334734,2634.9,2634.8,0.05010677]
[1727337208520,9.71064282,2634.9,2634.8,0.05010677]
[1727337208872,0.8143,2634.6,2634.2,3.0369]
[1727337209878,0.8143,2634.6,2634.0,3.03718]
[1727337210049,0.814,2634.5,2634.0,6.07428]
[1727337210376,0.814,2634.5,2634.0,3.03714]
[1727337210577,3.85064,2634.5,2634.0,3.03714]
[1727337210738,0.814,2634.5,2634.1,3.03707]
[1727337210945,3.85065,2634.5,2634.0,3.03714]
[1727337211647,3.85065,2634.5,2633.8,10.47739]
[1727337211648,0.8047,2634.4,2633.8,10.47739]
[1727337212176,0.8047,2634.3,2633.8,10.47736]
[1727337212387,0.8047,2634.3,2633.9,3.03729]
[1727337212606,0.7612,2634.1,2633.6,3.03757]
[1727337212889,0.7612,2634.1,2633.7,3.03747]
[1727337213453,0.7612,2634.1,2633.6,3.0]
[1727337213454,3.79829,2634.1,2633.6,3.0]
[1727337213653,3.79829,2634.1,2633.5,3.03766]
[1727337213654,4.55747673,2634.1,2633.5,3.03766]
[1727337214078,3.0372,2634.0,2633.5,3.03766]